bitfinex/quotes_ETHUSD_20250810
["timestamp","ask_amount","ask_price","bid_price","bid_amount"]
[1754817829044,6.1481244,4219.9,4219.8,0.22049791]
[1754817829360,9.1481244,4219.9,4219.8,0.22049791]
[1754817829662,9.6587831,4219.9,4219.8,0.22049791]
[1754817829960,9.88731983,4219.9,4219.8,1e-08]
[1754817831214,9.66011983,4219.9,4219.8,1e-08]
[1754817832236,9.65611983,4219.9,4219.8,1e-08]
[1754817832438,9.6547831,4219.9,4219.8,0.22021926]
[1754817834065,9.6547831,4219.9,4219.8,1e-08]
[1754817836225,9.65611983,4219.9,4219.8,1e-08]
[1754817838618,9.65611983,4219.9,4219.8,0.68605961]
[1754817838825,6.00011983,4219.9,4219.8,1.17865961]
[1754817839050,9.14446113,4219.9,4219.8,1.17865961]
[1754817840517,0.11973673,4219.9,4219.8,1.17865961]
[1754817840719,3.7734,4219.9,4219.8,1.17865961]
[1754817841632,6.1431244,4219.9,4219.8,1.17865961]
[1754817842223,3.7734,4219.9,4219.8,1.17865961]
[1754817842752,6.1431244,4219.9,4219.8,1.17865961]
[1754817843868,6.1431244,4219.9,4219.8,0.68605961]
[1754817844231,6.1431244,4219.9,4219.8,1.17865961]
[1754817845442,6.1431244,4219.9,4219.8,0.22025961]
[1754817845642,6.1431244,4219.9,4219.8,0.68605961]
[1754817845847,6.1431244,4219.9,4219.8,0.22025961]
[1754817847236,9.1431244,4219.9,4219.8,0.22025961]
[1754817847638,9.65411672,4219.9,4219.8,0.22025961]
[1754817847839,9.65411672,4219.9,4219.8,1.17865961]
[1754817848847,9.65411672,4219.9,4219.8,1.17875601]
[1754817850549,2.99911672,4219.9,4219.8,1.17875601]
[1754817850866,6.1421244,4219.9,4219.8,1.17875601]
[1754817851671,6.1421244,4219.9,4219.8,0.68615601]
[1754817851877,6.1421244,4219.9,4219.8,0.68620284]
[1754817853558,6.1421244,4219.9,4219.8,0.22040284]
[1754817855764,6.1421244,4219.9,4219.8,1.17880284]
[1754817856776,6.1421244,4219.9,4219.8,0.68620284]
[1754817857169,6.1421244,4219.9,4219.8,0.22040284]
[1754817857473,6.65334629,4219.9,4219.8,0.22040284]
[1754817857679,6.65334629,4219.9,4219.8,0.22062239]
[1754817859881,9.65334629,4219.9,4219.8,0.22062239]
[1754817860453,9.65334629,4219.9,4219.8,0.22072788]
[1754817860656,9.65334629,4219.9,4219.8,0.67092788]
[1754817861254,9.65334629,4219.9,4219.8,0.22072788]
[1754817862755,9.65334629,4219.9,4219.8,1.14162788]
[1754817863085,9.65534629,4219.9,4219.8,1.14162788]
[1754817864908,9.65534629,4219.9,4219.8,0.67092788]
[1754817865204,9.65534629,4219.9,4219.8,1.14162788]
[1754817868899,9.65534629,4219.9,4219.8,1.14164923]
[1754817869282,9.65534629,4219.9,4219.8,1.14163638]
[1754817872901,9.65534629,4219.9,4219.8,0.67093638]
[1754817875795,9.65534629,4219.9,4219.8,0.22073638]
[1754817875970,9.65534629,4219.9,4219.8,0.20851983]
[1754817878072,18.53203875,4219.9,4219.8,0.20851983]
[1754817878385,18.75923875,4219.9,4219.8,0.20851983]
[1754817878590,17.8945583,4219.9,4219.8,0.20851983]
[1754817879486,2.37000521,4219.4,4219.3,0.001]
[1754817879692,6.02000521,4219.4,4219.3,0.001]
[1754817879870,6.5312271,4219.4,4219.3,0.001]
[1754817880272,6.6496271,4219.4,4219.3,0.001]
[1754817882506,6.6496271,4219.4,4219.3,1e-08]
[1754817882507,9.6496271,4219.4,4219.3,1e-08]
[1754817883509,10.28896318,4219.4,4219.3,1e-08]
[1754817884013,5.92022991,4219.0,4218.9,1e-08]
[1754817884192,10.71983702,4219.0,4218.9,1e-08]
[1754817884391,10.83823702,4219.0,4218.9,1e-08]
[1754817884627,10.1988518,4219.0,4218.9,1e-08]
[1754817885107,10.42210162,4219.0,4218.9,1e-08]
[1754817885273,10.20018853,4219.0,4218.9,1e-08]
[1754817885471,10.19993587,4219.0,4218.9,1e-08]
[1754817886617,2.37039846,4218.7,4218.6,1e-08]
[1754817886820,6.13779846,4218.7,4218.6,1e-08]
[1754817886992,10.28723721,4218.7,4218.6,1e-08]
[1754817887192,9.65010442,4218.7,4218.6,1e-08]
[1754817887917,2.37045465,4218.6,4218.5,1e-08]
[1754817888092,3.45510388,4218.6,4218.5,1e-08]
[1754817888288,9.62110388,4218.6,4218.5,1e-08]
[1754817888508,9.59742388,4218.6,4218.5,1e-08]
[1754817888876,9.59742388,4218.6,4218.4,0.001]
[1754817888877,5.92051084,4218.5,4218.4,1e-08]
[1754817889078,10.30768007,4218.5,4218.4,1e-08]
[1754817889380,2.37096047,4217.7,4217.6,1e-08]
[1754817889598,6.13836047,4217.7,4217.6,1e-08]
[1754817889884,9.13836047,4217.7,4217.6,0.46830001]
[1754817890408,9.13836047,4217.7,4217.6,1e-08]
[1754817891508,9.13836047,4217.7,4217.6,0.46830001]
[1754817891917,9.13836047,4217.7,4217.6,1e-08]
[1754817892088,9.68836047,4217.7,4217.6,1e-08]
[1754817892291,10.42523912,4217.7,4217.6,1e-08]
[1754817892495,11.06504537,4217.7,4217.6,1e-08]
[1754817892700,10.6477106,4217.7,4217.6,1e-08]
[1754817893104,10.4205106,4217.7,4217.6,1e-08]
[1754817893382,10.83555849,4217.7,4217.6,1e-08]
[1754817893583,10.19937585,4217.7,4217.6,1e-08]
[1754817896223,6.55037585,4217.7,4217.6,1e-08]
[1754817896515,10.19803912,4217.7,4217.6,0.46830001]
[1754817896718,9.68836047,4217.7,4217.6,0.92670001]
[1754817897020,9.80660565,4217.7,4217.6,0.92670001]
[1754817897204,9.80660565,4217.7,4217.6,1e-08]
[1754817897386,10.31492888,4217.7,4217.6,1e-08]
[1754817899316,5.92101669,4217.6,4217.1,1e-08]
[1754817899649,3.03964158,4217.2,4217.1,1e-08]
[1754817899816,6.68964158,4217.2,4217.1,1e-08]
[1754817900197,6.69097831,4217.2,4217.1,1e-08]
[1754817900606,6.69097831,4217.2,4217.1,0.46830001]
[1754817900803,9.69097831,4217.2,4217.1,1e-08]
[1754817901696,9.69097831,4217.2,4217.1,0.46830001]
[1754817901887,9.13997831,4217.2,4217.1,0.92670001]
[1754817902335,9.13864158,4217.2,4217.1,0.92670001]
[1754817903989,9.13864158,4217.2,4217.1,1e-08]
[1754817905726,9.13864158,4217.2,4217.1,0.46830001]
[1754817906103,9.26050323,4217.2,4217.1,0.46830001]
[1754817906302,9.26050323,4217.2,4217.1,0.92670001]
[1754817907623,9.26183996,4217.2,4217.1,0.92670001]
[1754817908291,5.49297831,4217.2,4217.1,0.92670001]
[1754817908497,9.14197831,4217.2,4217.1,0.92670001]
[1754817909431,9.31951898,4217.2,4217.1,0.92670001]
[1754817910311,9.82897271,4217.2,4217.1,0.92670001]
[1754817910896,9.31951898,4217.2,4217.1,0.92670001]
[1754817911093,5.66918225,4217.2,4217.1,0.92670001]
[1754817911330,9.31818225,4217.2,4217.1,0.92670001]
[1754817912706,3.94694067,4217.2,4217.1,0.92670001]
[1754817912915,6.31818225,4217.2,4217.1,0.92670001]
[1754817914440,0.29794067,4217.2,4217.1,0.92670001]
[1754817914611,3.94594067,4217.2,4217.1,0.92670001]
[1754817916522,3.7684,4217.2,4217.1,0.92670001]
[1754817916734,3.7684,4217.2,4217.1,2.08042527]
[1754817917519,3.7684,4217.2,4217.1,4.45172308]
[1754817918115,3.7684,4217.2,4217.1,3.29799782]
[1754817918517,3.65,4217.2,4217.1,3.29799782]
[1754817919141,3.65,4217.2,4217.1,0.92670001]
[1754817919348,3.65,4217.2,4217.1,3.29799782]
[1754817919349,0.002,4217.2,4217.1,3.29799782]
[1754817919503,0.002,4217.2,4217.1,7.70069358]
[1754817921829,0.002,4217.2,4217.1,8.25069358]
[1754817929681,0.002,4217.2,4217.1,8.36909358]
[1754817932551,0.002,4217.7,4217.6,5.92101669]
[1754817932752,0.002,4217.7,4217.6,14.2786287]
[1754817932952,0.002,4217.7,4217.6,17.24700448]
[1754817935355,0.002,4217.7,4217.6,20.89200448]
[1754817949675,0.002,4217.7,4217.6,20.88900448]
[1754817959166,0.002,4217.7,4217.6,20.88800448]
[1754817969292,0.002,4217.7,4217.6,16.30810448]
[1754817969468,0.002,4217.7,4217.6,5.48941669]
[1754817969789,0.2292,4217.7,4217.6,5.37101669]
[1754817969995,0.2292,4217.7,4217.5,3.08272722]
[1754817970156,0.2292,4217.7,4217.6,2.37101669]
[1754817971186,0.2292,4217.7,4217.5,3.0827218]
[1754817971380,0.002,4217.7,4217.6,10.6102287]
[1754817971586,0.002,4217.7,4217.6,11.5310287]
[1754817972172,0.002,4217.7,4217.6,11.0735287]
[1754817972376,0.002,4217.7,4217.6,11.6494287]
[1754817972576,0.002,4217.7,4217.6,11.1919287]
[1754817972776,0.002,4217.7,4217.6,10.7286287]
[1754817973798,0.002,4217.7,4217.6,11.1919287]
[1754817975077,0.002,4217.7,4217.6,11.6494287]
[1754817976301,0.002,4217.7,4217.6,13.03874932]
[1754817978271,0.002,4217.7,4217.6,16.58874932]
[1754817980099,0.002,4217.7,4217.6,6.87873731]
[1754817980302,0.002,4217.7,4217.6,17.3676287]
[1754817981275,0.2292,4217.7,4217.2,2.37124158]
[1754817981575,0.002,4217.7,4217.6,2.37101669]
[1754817981907,0.002,4217.7,4217.6,7.69892366]
[1754817982274,0.002,4217.7,4217.6,11.88692366]
[1754817983306,0.002,4217.7,4217.6,6.76492366]
[1754817983482,0.002,4217.7,4217.6,5.37101669]
[1754817983802,0.2292,4217.7,4217.4,2.37109021]
[1754817984002,0.002,4217.7,4217.1,1e-08]
[1754817984304,0.2272,4217.6,4217.1,1e-08]
[1754817984800,0.2272,4217.5,4217.1,2.37128839]
[1754817985004,0.002,4217.7,4217.2,8.23921201]
[1754817985206,0.002,4217.7,4217.6,10.6102287]
[1754817985674,0.002,4217.7,4217.6,11.5442287]
[1754817986076,0.002,4217.7,4217.6,15.0942287]
[1754817986406,0.002,4217.7,4217.6,18.7322287]
[1754817991314,0.002,4217.7,4217.6,18.8506287]
[1754817991522,0.002,4217.7,4217.6,15.2126287]
[1754817992219,0.002,4217.7,4217.6,17.34419257]
[1754817993730,0.002,4217.7,4217.6,20.98119257]
[1754817994221,0.002,4217.7,4217.6,22.40419257]
[1754817994525,0.002,4217.7,4217.6,20.98119257]
[1754817994906,0.002,4218.5,4218.1,2.92073563]
[1754817995107,0.002,4218.5,4218.4,2.92056703]
[1754817995293,0.002,4218.5,4218.4,14.82048471]
[1754817995500,0.002,4219.0,4218.8,0.55]
[1754817995699,0.002,4219.0,4218.7,2.37036148]
[1754817995700,0.002,4219.0,4218.9,17.82020096]
[1754817995895,0.002,4219.0,4218.9,19.81555434]
[1754817996096,0.002,4219.0,4218.9,20.74955434]
[1754817996300,0.002,4219.0,4218.9,20.86795434]
[1754817996708,0.002,4219.0,4218.9,21.02835434]
[1754817998433,0.002,4219.0,4218.9,20.53205434]
[1754817999343,0.002,4219.0,4218.9,21.02835434]
[1754818003817,0.002,4219.0,4218.9,20.53205434]
[1754818004817,0.002,4219.0,4218.9,21.02835434]
[1754818005219,0.002,4219.0,4218.9,20.63835434]
[1754818012372,0.002,4219.0,4218.9,20.14205434]
[1754818013275,0.002,4219.0,4218.9,19.70435434]
[1754818015275,0.002,4219.0,4218.9,20.14265434]
[1754818017452,0.002,4219.0,4218.9,20.63735434]
[1754818022687,0.002,4219.0,4218.9,20.14265434]
[1754818024486,0.002,4219.0,4218.9,19.70435434]
[1754818025011,0.002,4219.0,4218.9,7.27814233]
[1754818025193,0.2292,4219.0,4218.8,0.001]
[1754818025662,0.2272,4218.9,4218.8,0.001]
[1754818027719,0.002,4219.0,4218.8,0.001]
[1754818028091,0.2292,4219.0,4218.8,0.001]
[1754818028504,0.002,4219.0,4218.8,0.001]
[1754818028698,0.2272,4218.9,4218.8,0.001]
[1754818029787,0.002,4219.0,4218.8,2.37134227]
[1754818030196,0.002,4219.0,4218.9,2.37028609]
[1754818030812,0.002,4219.0,4218.8,2.37133571]
[1754818033194,0.002,4219.0,4218.9,2.37028609]
[1754818033395,0.002,4219.0,4218.9,2.83228895]
[1754818034492,0.002,4219.0,4218.9,2.80858609]
[1754818034690,0.002,4219.0,4218.9,3.30328609]
[1754818034911,0.002,4219.0,4218.9,3.32698895]
[1754818035322,0.002,4219.0,4218.9,8.64578667]
[1754818035520,0.002,4219.0,4218.9,8.74048381]
[1754818041416,0.002,4219.0,4218.9,12.37148381]
[1754818042797,0.002,4219.0,4218.9,12.46633881]
[1754818045398,0.002,4219.0,4218.9,7.35233881]
[1754818045611,0.002,4219.0,4218.9,5.48868609]
[1754818046219,0.002,4219.0,4218.9,2.48868609]
[1754818048009,0.002,4219.0,4218.9,10.7278981]
[1754818049154,0.002,4219.0,4218.9,18.2528981]
[1754818051168,0.002,4219.0,4218.9,18.8028981]
[1754818051470,0.002,4219.0,4218.9,20.92032554]
[1754818052878,0.002,4219.0,4218.9,21.01518054]
[1754818056562,1e-08,4219.0,4218.9,21.01518054]
[1754818058480,1e-08,4219.0,4218.9,21.22518054]
[1754818058677,0.002,4219.5,4218.9,22.64818054]
[1754818059007,0.002,4219.5,4219.4,14.15921722]
[1754818059205,0.002,4219.5,4219.4,17.90661722]
[1754818059504,0.002,4219.5,4219.4,18.80161722]
[1754818059704,0.002,4219.5,4219.4,18.89645922]
[1754818060988,1e-08,4219.5,4219.4,18.89645922]
[1754818061197,1e-08,4219.5,4219.4,21.04411303]
[1754818062471,0.042,4219.9,4219.8,2.91978055]
[1754818062672,0.042,4219.9,4219.8,14.81069036]
[1754818062878,0.042,4219.9,4219.8,15.80039256]
[1754818065210,0.042,4219.9,4219.8,18.80039256]
[1754818065404,0.042,4219.9,4219.8,20.92690015]
[1754818070206,0.002,4220.4,4220.2,13.60876795]
[1754818070515,0.002,4220.4,4220.2,17.23576795]
[1754818070714,0.002,4220.4,4220.2,18.27446795]
[1754818071020,0.002,4220.4,4220.2,20.68633063]
[1754818071313,0.002,4220.4,4220.2,19.76603063]
[1754818074521,0.002,4220.4,4220.2,19.67120863]
[1754818075145,0.2292,4220.3,4220.2,7.80499662]
[1754818075439,0.2292,4220.3,4220.2,2.48795594]
[1754818075741,0.2292,4220.3,4220.2,0.1184]
[1754818076116,0.2292,4220.3,4220.0,4.956]
[1754818076316,0.1184,4220.2,4220.0,4.956]
[1754818076508,0.2272,4220.1,4220.0,7.956]
[1754818077733,0.2272,4220.1,4220.0,10.32566824]
[1754818077936,0.2272,4220.1,4220.0,7.956]
[1754818080250,0.2272,4220.1,4220.0,10.32566824]
[1754818080550,0.1184,4220.2,4220.0,7.956]
[1754818081248,0.1184,4220.2,4220.0,10.32561871]
[1754818082547,0.1184,4220.2,4220.1,2.36961209]
[1754818082745,0.1184,4220.2,4220.0,10.3256571]
[1754818084154,0.1184,4220.2,4220.0,10.32566809]
[1754818084522,0.1184,4220.2,4220.1,2.36961209]
[1754818085623,0.1184,4220.2,4220.0,10.32565525]
[1754818085824,0.1184,4220.2,4220.1,2.36961209]
[1754818086534,0.1184,4220.2,4220.0,10.32565175]
[1754818086740,0.1184,4220.2,4220.1,2.36961209]
[1754818088172,0.1184,4220.2,4220.0,10.32565284]
[1754818088832,0.1184,4220.2,4220.1,2.36961209]
[1754818090068,0.1184,4220.2,4220.0,10.32566377]
[1754818090570,0.1184,4220.2,4220.1,2.36961209]
[1754818091280,0.1184,4220.2,4220.0,10.32566587]
[1754818091569,0.1184,4220.2,4220.1,2.36961209]
[1754818092556,0.1184,4220.2,4220.0,7.956]
[1754818092757,0.1184,4220.2,4220.0,10.32566538]
[1754818093269,0.1184,4220.2,4220.1,2.36961209]
[1754818094553,0.002,4220.3,4220.2,2.36955594]
[1754818095082,0.002,4220.3,4220.2,11.5527635]
[1754818095285,0.002,4220.3,4220.2,12.56840554]
[1754818098260,0.002,4220.3,4220.2,15.56840554]
[1754818099697,0.002,4220.3,4220.2,15.66323654]
[1754818100663,0.002,4220.4,4220.3,2.36949979]
[1754818100871,0.002,4220.4,4220.3,6.91689478]
[1754818101070,0.002,4220.4,4220.3,9.21024047]
[1754818102094,0.002,4220.4,4220.3,9.76024047]
[1754818104606,0.002,4220.4,4220.3,12.76024047]
[1754818111624,0.042,4220.9,4220.3,12.76024047]
[1754818111625,1e-08,4220.8,4220.7,2.36927523]
[1754818111801,1e-08,4220.8,4220.7,17.37257999]
[1754818112000,1e-08,4220.8,4220.7,20.07581524]
[1754818112193,1e-08,4220.8,4220.7,20.17062624]
[1754818116004,1e-08,4220.8,4220.7,20.72062624]
[1754818116318,1e-08,4220.9,4220.8,5.9192191]
[1754818116519,1e-08,4220.9,4220.8,8.23625978]
[1754818116726,1e-08,4220.9,4220.8,9.13595978]
[1754818118314,1e-08,4220.9,4220.8,7.68625978]
[1754818118518,1e-08,4220.9,4220.8,8.9902191]
[1754818120662,1e-08,4220.9,4220.8,5.9902191]
[1754818122217,1e-08,4220.9,4220.8,8.9902191]
[1754818126848,0.00200001,4220.9,4220.8,5.3692191]
[1754818127025,0.22920001,4220.9,4220.8,5.3692191]
[1754818127359,0.00200001,4220.9,4220.8,5.3692191]
[1754818130654,0.00200001,4220.9,4220.8,8.9882191]
[1754818130975,0.00200001,4220.9,4220.8,11.11840893]
[1754818132669,1e-08,4221.1,4221.0,2.36910684]
[1754818132872,1e-08,4221.1,4221.0,6.1301979]
[1754818133078,1e-08,4221.1,4221.0,9.35264752]
[1754818133290,1e-08,4221.1,4221.0,9.44745252]
[1754818133595,0.002,4221.6,4221.3,0.55]
[1754818133774,0.002,4221.6,4221.5,13.60803825]
[1754818133958,0.002,4221.6,4221.5,13.72643825]
[1754818134145,0.002,4221.6,4221.5,16.02768538]
[1754818134475,0.002,4221.6,4221.5,17.05158138]
[1754818144767,0.002,4221.6,4221.5,17.27181065]
[1754818149293,0.002,4221.6,4221.5,20.88881065]
[1754818149491,0.002,4221.6,4221.5,8.10349864]
[1754818149690,0.002,4221.6,4221.5,9.41925151]
[1754818149891,0.002,4221.6,4221.5,5.80225151]
[1754818150607,0.002,4221.6,4221.5,5.70745551]
[1754818155890,0.002,4221.6,4221.5,5.58905551]
[1754818156218,0.002,4221.6,4221.5,3.22022927]
[1754818156436,0.2292,4221.6,4221.5,0.22022927]
[1754818157478,0.002,4221.6,4221.5,0.22022927]
[1754818158480,0.002,4221.6,4221.5,0.22045628]
[1754818158980,0.002,4221.6,4221.5,2.58928252]
[1754818159714,0.002,4221.6,4221.5,0.22045628]
[1754818160514,0.002,4221.6,4221.5,2.58928252]
[1754818164685,0.002,4221.6,4221.5,3.04118252]
[1754818166408,0.002,4221.6,4221.5,2.58928252]
[1754818168598,0.002,4221.6,4221.5,3.04118252]
[1754818173124,0.002,4221.6,4221.5,2.36882624]
[1754818173325,0.002,4221.6,4221.5,2.82072624]
[1754818173526,0.002,4221.6,4221.5,0.4519]
[1754818174826,0.002,4221.6,4221.0,6.43599446]
[1754818175005,0.002,4221.6,4221.0,0.4519]
[1754818175207,2.37081384,4221.6,4220.9,3.0]
[1754818175529,2.37081384,4221.6,4220.8,6.44491545]
[1754818175530,0.02368,4221.5,4220.8,0.001]
[1754818175834,0.25088,4221.5,4220.8,0.001]
[1754818176031,2.36901791,4221.2,4220.8,0.001]
[1754818176238,2.36905928,4221.1,4220.8,0.001]
[1754818176400,2.36901076,4221.2,4220.8,0.001]
[1754818176730,3.06901076,4221.2,4220.8,0.001]
[1754818177032,0.7,4221.2,4220.8,0.001]
[1754818177423,3.0689992,4221.2,4220.8,0.001]
[1754818177632,2.36907704,4221.1,4220.8,0.001]
[1754818178131,3.06900954,4221.2,4220.8,0.001]
[1754818178429,0.7,4221.2,4220.8,0.001]
[1754818179416,0.7,4221.2,4220.9,0.9126]
[1754818179610,0.7,4221.2,4221.0,0.4519]
[1754818179816,0.7,4221.2,4220.8,0.001]
[1754818180014,0.7,4221.2,4220.8,0.4529]
[1754818180350,0.7,4221.2,4220.8,0.001]
[1754818180637,0.7,4221.2,4220.9,0.4519]
[1754818183247,0.1184,4221.0,4220.9,0.4519]
[1754818183541,0.1184,4221.0,4220.8,0.001]
[1754818185046,0.1184,4221.0,4220.8,0.4529]
[1754818186534,0.1184,4221.0,4220.8,0.001]
[1754818187043,2.51121265,4221.0,4220.8,0.001]
[1754818187242,2.48753265,4221.0,4220.8,0.001]
[1754818187615,2.36916297,4220.9,4220.8,0.001]
[1754818187917,6.00684297,4220.9,4220.8,0.001]
[1754818188118,5.98316297,4220.9,4220.8,0.001]
[1754818188616,6.21036297,4220.9,4220.8,0.001]
[1754818190552,5.98316297,4220.9,4220.8,0.001]
[1754818195775,6.16211212,4220.9,4220.8,0.001]
[1754818200581,3.7314,4220.9,4220.8,0.9419]
[1754818200761,3.7314,4220.9,4220.8,3.3111191]
[1754818202064,3.7314,4220.9,4220.8,0.9419]
[1754818202672,3.7314,4220.9,4220.8,0.001]
[1754818202988,3.7314,4220.9,4220.8,0.4685]
[1754818203168,3.7314,4220.9,4220.8,0.9419]
[1754818203369,0.1184,4220.9,4220.8,0.9419]
[1754818203569,3.612,4221.1,4221.0,2.36906663]
[1754818203761,3.612,4221.1,4221.0,3.30996663]
[1754818204581,3.612,4221.1,4220.8,0.001]
[1754818204882,3.612,4221.1,4220.8,0.4685]
[1754818205054,3.612,4221.1,4220.9,0.9409]
[1754818205253,3.612,4221.1,4221.0,0.9409]
[1754818205486,3.7304,4221.1,4221.0,0.9409]
[1754818209683,3.7304,4221.1,4221.0,1.652145]
[1754818213595,3.7304,4221.1,4221.0,0.711245]
[1754818213884,3.7304,4221.1,4220.8,0.001]
[1754818214089,3.7304,4221.1,4220.8,0.4685]
[1754818214384,3.7304,4221.1,4220.8,0.001]
[1754818214558,3.7304,4221.1,4220.9,0.711245]
[1754818215664,3.7304,4221.1,4221.0,0.4675]
[1754818216190,3.7304,4221.1,4221.0,0.9409]
[1754818216491,3.7304,4221.1,4221.0,1.652145]
[1754818222206,2.36910723,4221.0,4220.8,0.001]
[1754818222409,0.1184,4221.1,4220.8,0.001]
[1754818222712,0.002,4221.5,4220.8,2.3702191]
[1754818222713,0.1184,4220.9,4220.8,2.3702191]
[1754818222896,0.1184,4220.9,4220.8,3.0814611]
[1754818223087,0.1184,4220.9,4220.8,4.02708432]
[1754818223407,0.1184,4220.9,4220.8,2.14916522]
[1754818223707,0.1184,4220.9,4220.8,1.672742]
[1754818223887,0.1184,4220.9,4220.8,4.0419611]
[1754818224087,0.1184,4220.9,4220.8,1.672742]
[1754818224507,0.1184,4220.9,4220.8,0.712242]
[1754818224719,0.1184,4220.9,4220.8,1.181442]
[1754818224882,3.7284,4220.9,4220.8,1.181442]
[1754818225079,3.7284,4220.9,4220.8,0.712242]
[1754818225332,3.7284,4220.9,4220.8,0.001]
[1754818225626,6.12124297,4220.9,4220.8,0.001]
[1754818225783,6.09756297,4220.9,4220.8,0.001]
[1754818225983,6.32476297,4220.9,4220.8,0.001]
[1754818226502,6.83602024,4220.9,4220.8,0.001]
[1754818227427,10.38589908,4220.9,4220.8,0.001]
[1754818227836,18.62511109,4220.9,4220.8,0.001]
[1754818228032,5.91933137,4220.6,4220.5,1e-08]
[1754818228199,0.55,4220.5,4220.3,1e-08]
[1754818228520,6.58145229,4220.4,4220.3,1e-08]
[1754818228690,6.87945576,4220.4,4220.3,1e-08]
[1754818228896,7.29060777,4220.4,4220.3,1e-08]
[1754818229119,6.43191649,4220.4,4220.3,1e-08]
[1754818230424,6.65911649,4220.4,4220.3,1e-08]
[1754818230932,6.14798038,4220.4,4220.3,1e-08]
[1754818231304,6.6576766,4220.4,4220.3,1e-08]
[1754818231698,10.2676766,4220.4,4220.3,1e-08]
[1754818237026,10.26633987,4220.4,4220.3,1e-08]
[1754818237533,10.03913987,4220.4,4220.3,1e-08]
[1754818238139,9.64784365,4220.4,4220.3,1e-08]
[1754818238313,9.64784365,4220.4,4220.3,0.46920001]
[1754818238512,6.09784365,4220.4,4220.3,1e-08]
[1754818238841,6.09784365,4220.4,4220.3,0.46920001]
[1754818240335,6.09784365,4220.4,4220.3,1e-08]
[1754818241037,0.1184,4220.4,4220.3,0.96050001]
[1754818241240,6.09784365,4220.4,4220.3,0.96050001]
[1754818241737,0.1184,4220.4,4220.3,0.96050001]
[1754818241936,3.7284,4220.4,4220.3,0.96050001]
[1754818242124,3.7284,4220.4,4220.3,4.15881025]
[1754818242632,0.1184,4220.7,4220.6,2.36933137]
[1754818242937,0.7,4221.1,4220.6,3.32983137]
[1754818243137,3.7284,4221.0,4220.8,2.3692191]
[1754818243336,3.7284,4221.0,4220.9,0.9605]
[1754818243917,3.7284,4221.0,4220.4,0.5876]
[1754818244118,3.7284,4221.0,4220.5,0.9605]
[1754818244119,3.61,4221.0,4220.5,0.9605]
[1754818244340,2.48773137,4220.6,4220.5,0.9605]
[1754818244533,6.09773137,4220.6,4220.5,0.9605]
[1754818244841,6.09773137,4220.6,4220.5,0.4913]
[1754818245139,6.09773137,4220.6,4220.5,0.9605]
[1754818245634,3.7284,4220.6,4220.5,0.9605]
[1754818245943,6.09773137,4220.6,4220.5,0.9605]
[1754818248820,3.7284,4220.6,4220.5,0.9605]
[1754818249345,6.09773137,4220.6,4220.5,0.9605]
[1754818252326,6.09773137,4220.6,4220.5,0.4913]
[1754818252921,2.36944365,4220.4,4220.3,1e-08]
[1754818253160,5.97844365,4220.4,4220.3,0.47150001]
[1754818253467,3.609,4220.4,4220.3,0.47150001]
[1754818253826,3.609,4220.4,4220.3,0.92720001]
[1754818254378,5.97844365,4220.4,4220.3,0.92720001]
[1754818254871,3.609,4220.4,4220.3,0.92720001]
[1754818255368,0.7,4221.1,4220.3,2.57660651]
[1754818255520,3.609,4221.0,4220.8,8.23921201]
[1754818255721,3.609,4221.0,4220.9,0.9272]
[1754818255954,3.609,4221.0,4220.9,2.31769177]
[1754818256536,3.609,4221.0,4220.9,4.68685474]
[1754818258053,0.7,4221.2,4221.1,2.36905072]
[1754818258254,3.609,4221.2,4221.1,2.36905072]
[1754818258446,3.609,4221.2,4221.1,3.29625072]
[1754818258751,3.609,4221.2,4221.1,4.82575685]
[1754818258954,3.611,4221.5,4221.4,2.36888236]
[1754818259158,3.611,4221.5,4221.4,0.9272]
[1754818259728,3.611,4221.5,4221.4,3.29608236]
[1754818260056,3.611,4221.5,4221.4,0.9272]
[1754818260747,3.611,4221.5,4221.1,0.9272]
[1754818260936,3.611,4221.5,4221.2,0.9272]
[1754818261123,3.611,4221.5,4221.3,0.9272]
[1754818261329,3.611,4221.5,4221.3,2.36893847]
[1754818261562,3.611,4221.5,4221.4,0.9272]
[1754818261740,3.611,4221.5,4221.4,2.3176376]
[1754818262144,3.611,4221.5,4221.4,3.0287666]
[1754818262662,3.611,4221.5,4221.4,0.9272]
[1754818263453,3.611,4221.5,4221.4,3.29608236]
[1754818263757,3.611,4221.5,4221.4,0.9272]
[1754818264368,3.611,4221.5,4221.4,0.4557]
[1754818264539,3.611,4221.5,4221.4,0.9272]
[1754818264743,3.611,4221.5,4221.2,0.711159]
[1754818265162,0.02368,4221.4,4221.2,1.638359]
[1754818265361,0.14208,4221.4,4220.8,3.41481874]
[1754818265566,0.14208,4221.4,4221.1,0.711184]
[1754818266075,0.1184,4221.4,4221.1,1.638384]
[1754818266243,0.1184,4221.4,4221.2,0.9272]
[1754818266946,0.14208,4221.4,4220.9,0.711211]
[1754818267271,0.14208,4221.4,4220.9,1.166911]
[1754818267976,2.83663847,4221.3,4220.9,0.711211]
[1754818268147,0.1184,4221.0,4220.9,0.711211]
[1754818268347,3.7264,4221.0,4220.9,0.711211]
[1754818268558,3.7264,4221.0,4220.4,2.36941854]
[1754818268776,0.1184,4220.7,4220.5,0.4715]
[1754818268985,0.1184,4220.7,4220.6,0.9272]
[1754818269478,0.1184,4220.7,4220.6,3.46038107]
[1754818270374,3.608,4221.0,4220.8,2.36919304]
[1754818270675,3.608,4221.0,4220.9,3.29636297]
[1754818271264,3.608,4221.0,4220.9,0.9272]
[1754818271783,3.608,4221.0,4220.9,3.29636297]
[1754818272788,0.1204,4221.5,4221.4,2.36888236]
[1754818273159,0.1204,4221.5,4221.4,3.29608236]
[1754818273875,0.1204,4221.5,4221.4,0.9272]
[1754818274058,0.1204,4221.5,4221.4,3.29608236]
[1754818274387,0.1204,4221.5,4221.4,0.9272]